Cogmind - Beta 10.2 @@@ ROGUE MODE // 2021.03.16 @ 09:31:39 Player: MoonDog Result: Self-destructed Performance ------------- Evolutions (1) 500 Regions Visited (3) 600 Robots Destroyed (1) 5 Value Destroyed (16) 16 Prototype IDs (2) 40 Alien Tech Used (0) 0 Bonus (141) 141 TOTAL SCORE: 1302 Bonus ------- Follower Combat Kills 141 Cogmind --------- Core Integrity 366/400 Matter 258/300 Energy 125/125 System Corruption 0% Temperature Cool (0) Movement Core (100) Ox1 Location -9/Storage Parts ------- > --- POWER (1) -------- Light Ion Engine > --- PROPULSION (2) --- Wheel > --- UTILITY (4) ------ Advanced Visual Processing Unit Signal Interpreter Targeting Computer Propulsion Shielding > --- WEAPON (2) ------- Light Assault Rifle > --- INVENTORY (4) ---- Small Storage Unit Propulsion Shielding Shield Generator Mining Claw Peak State ------------ > --- POWER ------------ Light Ion Engine > --- PROPULSION ------- Wheel VTOL Module > --- UTILITY ---------- Advanced Visual Processing Unit Advanced Visual Processing Unit Signal Interpreter Targeting Computer > --- WEAPON ----------- Mining Claw > --- INVENTORY -------- Light Ion Engine Small Storage Unit Shield Generator Light Assault Rifle [Rating: 13] Favorites ----------- Power Light Ion Engine Engine Light Ion Engine Propulsion Wheel Wheel Wheel Flight Unit VTOL Module Utility Targeting Computer Processor Targeting Computer Protection Propulsion Shielding Weapon Light Assault Rifle Ballistic Gun Light Assault Rifle Slashing Weapon Mining Claw Build | -11 -10 -9 -9 ------- Run | Scr Mat Mat Sto Slots Evolved 2 | . . 2 . Power . | . . . . Propulsion . | . . . . Utility 2 | . . 2 . Weapon . | . . . . Parts Attached 15 | 4 3 5 3 Power 2 | . . 1 1 Engine 2 | . . 1 1 Core . | . . . . Reactor . | . . . . Propulsion 3 | 2 . 1 . Treads . | . . . . Leg . | . . . . Wheel 2 | 2 . . . Hover . | . . . . Flight 1 | . . 1 . Utility 6 | . 3 2 1 Device . | . . . . Storage . | . . . . Processor 5 | . 3 2 . Hackware . | . . . . Protection 1 | . . . 1 Artifact . | . . . . Weapon 4 | 2 . 1 1 Energy Gun . | . . . . Energy Cannon . | . . . . Ballistic Gun 3 | 2 . . 1 Ballistic Cannon . | . . . . Launcher . | . . . . Special Weapon . | . . . . Impact Weapon . | . . . . Slashing Weapon 1 | . . 1 . Piercing Weapon . | . . . . Special Melee Weapon . | . . . . Unidentified Prototypes . | . . . . Parts Lost 1 | . . . 1 Power . | . . . . Propulsion 1 | . . . 1 Utility . | . . . . Weapon . | . . . . Highest Loss Streak 1 | . . . 1 Average Slot Usage (%) 78 | . 79 74 85 Engine 6 | . . 7 11 Wheel 17 | . 28 14 11 Flight 6 | . . 7 9 Processor 26 | . 22 25 33 Protection 2 | . . . 9 Ballistic Gun 18 | . 28 17 9 Slashing Weapon 1 | . . 2 1 Naked Turns . | . . . . Heaviest Build 5 | 2 2 5 5 Greatest Support 5 | 3 3 5 5 Greatest Overweight (x) . | . . . . Average Overweight (x) . | . . . . Largest Inventory Capacity 4 | 4 4 4 4 Average Capacity 4 | 4 4 4 4 Most Carried 4 | 2 2 4 4 Average Carried 3 | 1 2 3 3 Final Capacity 4 | 4 4 4 4 Final Carried 4 | 2 2 4 4 Class Distribution -------------------- 90% | Mutant 9% | Commander-Mutant Dominant Class ---------------- Mutant | -10/Materials Mutant | -9/Materials Commander-Mutant | -9/Storage Resources | -11 -10 -9 -9 ----------- Run | Scr Mat Mat Sto Matter Collected 320 | 239 . . 81 Remotely . | . . . . Salvage Created 29 | . 29 . . Parts 4 | . 4 . . Haulers Intercepted . | . . . . Recyclers Shooed 1 | . 1 . . Parts Field Recycled . | . . . . Retrieved Matter . | . . . . Parts Self-Destructed . | . . . . Prevented . | . . . . Kills | -11 -10 -9 -9 ------- Run | Scr Mat Mat Sto Combat Hostiles Destroyed . | . . . . Classes Destroyed 1 | . 1 . . Watcher 1 | . 1 . . Best Kill Streak 1 | . 1 . . Combat Bots Only . | . . . . Max Kills in Single Turn 1 | . 1 . . Gunslinging . | . . . . Exploded . | . . . . Melee . | . . . . Uniques/NPCs Destroyed . | . . . . Combat | -11 -10 -9 -9 -------- Run | Scr Mat Mat Sto Damage Taken 236 | . . 113 123 Core 34 | . . 10 24 Absorbed by Shields . | . . . . Core Remaining (%) 100 | 100 100 . . Volleys Fired 12 | . 3 2 7 Largest 2 | . 2 2 1 Hottest 40 | . 40 40 20 Shots Fired 17 | . 6 4 7 Gun 17 | . 6 4 7 Cannon . | . . . . Launcher . | . . . . Special . | . . . . Kinetic 17 | . 6 4 7 Thermal . | . . . . Explosive . | . . . . Electromagnetic . | . . . . Robot Hit Streak 5 | . 5 1 2 Robot Miss Streak 4 | . 1 1 4 Penetration Max . | . . . . Secondary Targets . | . . . . Shots Hit Robots 9 | . 5 2 2 Core Hits 5 | . 2 1 2 Critical Hits . | . . . . Critical Kills . | . . . . Critical Parts Destroyed . | . . . . Melee Attacks 9 | . . 9 . Impact . | . . . . Slashing 9 | . . 9 . Piercing . | . . . . Sneak Attacks . | . . . . Combat Hostiles . | . . . . Follow-up Attacks . | . . . . Damage Inflicted 104 | . 48 8 48 Guns 104 | . 48 8 48 Cannons . | . . . . Explosions . | . . . . Melee . | . . . . Ramming . | . . . . Kinetic 104 | . 48 8 48 Thermal . | . . . . Explosive . | . . . . Electromagnetic . | . . . . Impact . | . . . . Slashing . | . . . . Piercing . | . . . . Highest Corruption . | . . . . Average Corruption . | . . . . Corruption Purged . | . . . . Overload Shots . | . . . . Overflow Damage . | . . . . Projectiles . | . . . . Explosions . | . . . . Melee . | . . . . Knockbacks . | . . . . Impact . | . . . . Kinetic . | . . . . Secondary . | . . . . Self-Inflicted Damage . | . . . . Shots . | . . . . Rammed . | . . . . Targets Rammed . | . . . . Kicked . | . . . . Crushed . | . . . . Highest Temperature 6 | . . . 6 Average Temperature 5 | . . . 5 Received Heat Transfer 72 | . . 15 57 Siege Activations . | . . . . Robots Corrupted . | . . . . Combat Hostiles . | . . . . Parts Fried . | . . . . Impact Corruptions . | . . . . Robots Melted . | . . . . Combat Hostiles . | . . . . Parts Melted . | . . . . Heat Transferred . | . . . . Parts Sabotaged . | . . . . Parts Stolen . | . . . . Parts Stripped . | . . . . Power Chain Reactions . | . . . . Missiles Intercepted . | . . . . Alert | -11 -10 -9 -9 ------- Run | Scr Mat Mat Sto Peak Influence 118 | . 53 118 88 Initial 37 | . . 22 37 Average 42 | . 37 56 30 Maximum Alert Level . | . . . . Low Security (%) 100 | 100 100 100 100 Level 1 . | . . . . Level 2 . | . . . . Level 3 . | . . . . Level 4 . | . . . . Level 5 . | . . . . High Security . | . . . . Max Security . | . . . . Squads Dispatched 3 | . . 1 2 Investigation 1 | . . . 1 Extermination . | . . . . Reinforcement 2 | . . 1 1 Assault . | . . . . Garrison . | . . . . Intercept . | . . . . Construction Impeded . | . . . . Haulers Reinforced . | . . . . Stealth | -11 -10 -9 -9 --------- Run | Scr Mat Mat Sto Distress Signals 1 | . . 1 . Communications Jammed . | . . . . Distress Signals . | . . . . Times Spotted 21 | . 2 9 10 Peak Tracking Total 9 | . 1 9 7 Tactical Retreats 3 | . . 3 . Traps | -11 -10 -9 -9 ------- Run | Scr Mat Mat Sto Traps Triggered 2 | . . 1 1 Indirectly . | . . . . Trap Hack Attempts . | . . . . Triggered . | . . . . Disarmed . | . . . . Reprogrammed . | . . . . Reused . | . . . . Traps Extracted . | . . . . Installed . | . . . . Triggered . | . . . . Machines | -11 -10 -9 -9 ---------- Run | Scr Mat Mat Sto Machines Disabled . | . . . . Max in Single Turn . | . . . . Machines Sabotaged . | . . . . Garrisons Compromised . | . . . . Overloaded Fab Kills . | . . . . Fab Network Shutdowns . | . . . . Hacking | -11 -10 -9 -9 --------- Run | Scr Mat Mat Sto Machines Accessed 11 | . 4 5 2 Terminals 11 | . 4 5 2 Fabricators . | . . . . Repair Stations . | . . . . Recycling Units . | . . . . Scanalyzers . | . . . . Garrison Access . | . . . . Total Hacks 45 | . 13 20 12 Successful 29 | . 8 14 7 Failed 16 | . 5 6 5 Catastrophic 1 | . 1 . . Database Lockouts . | . . . . Manual 33 | . 8 17 8 Terminals 45 | . 13 20 12 Fabricators . | . . . . Repair Stations . | . . . . Recycling Units . | . . . . Scanalyzers . | . . . . Garrison Access . | . . . . Terminal Hacks 12 | . 4 5 3 Record 1 | . 1 . . Prototype ID Bank 1 | . . . 1 Emergency Access Points 1 | . . 1 . Terminal Index 1 | . . 1 . Unreport Threat 3 | . . 2 1 Patrol Status 1 | . . . 1 Hauler Manifests 2 | . 2 . . Registered Components 2 | . 1 1 . Fabricator Hacks . | . . . . Repair Station Hacks . | . . . . Recycling Unit Hacks . | . . . . Scanalyzer . | . . . . Garrison Access Hacks . | . . . . Unauthorized Hacks 17 | . 4 9 4 Terminals 17 | . 4 9 4 Track 5 | . 1 3 1 Botnet 9 | . 2 5 2 Operators 3 | . 1 1 1 Fabricators . | . . . . Repair Stations . | . . . . Recycling Units . | . . . . Scanalyzers . | . . . . Garrison Access . | . . . . Data Cores Recovered . | . . . . Used . | . . . . Hacking Detections 10 | . 3 5 2 Full Trace Events 1 | . . . 1 Feedback Events . | . . . . Feedback Blocked . | . . . . Robot Schematics Acquired . | . . . . Robots Built . | . . . . Matter . | . . . . Time . | . . . . Total Robot Build Rating . | . . . . Part Schematics Acquired . | . . . . Parts Built . | . . . . Matter . | . . . . Time . | . . . . Total Part Build Rating . | . . . . Parts Repaired . | . . . . Time . | . . . . Parts Recycled . | . . . . Recycled Matter . | . . . . Retrieved Matter . | . . . . Retrieved Components . | . . . . Parts Scanalyzed . | . . . . Part Schematics Acquired . | . . . . Parts Damaged . | . . . . Bothacking | -11 -10 -9 -9 ------------ Run | Scr Mat Mat Sto Used RIF Installer . | . . . . Robots Hacked . | . . . . Non-combat . | . . . . Combat . | . . . . Robot Hacks Applied . | . . . . Relay Couplers Released . | . . . . Robots Rewired . | . . . . Allies Hacked . | . . . . Hacks Repelled . | . . . . Allies | -11 -10 -9 -9 -------- Run | Scr Mat Mat Sto Total Allies 10 | . . . 10 Largest Group 10 | . . . 10 Highest-Rated Group 88 | . . . 88 Highest-Rated Ally 16 | . . . 16 Total Orders . | . . . . Ally Attacks 41 | . . . 41 Total Damage 424 | . . . 424 Kills 6 | . . . 6 Allies Corrupted . | . . . . Allies Melted . | . . . . Intel | -11 -10 -9 -9 ------- Run | Scr Mat Mat Sto Robot Analysis Total . | . . . . Derelict Logs Recovered . | . . . . Drone Launches . | . . . . Drone Recoveries . | . . . . Exploration | -11 -10 -9 -9 ------------- Run | Scr Mat Mat Sto Turns Passed 410 | 38 98 197 77 Spaces Moved 669 | 60 171 317 121 Core 346 | 60 171 115 . Treads . | . . . . Legs . | . . . . Wheels . | . . . . Hover . | . . . . Flight 323 | . . 202 121 Fastest Speed 45 | 50 50 45 45 Average Speed 47 | 50 50 46 45 Slowest Speed 50 | 50 50 50 45 Overloaded Moves . | . . . . Propulsion Burnouts . | . . . . Robots Hopped 2 | . . . 2 Cave-ins Triggered 1 | . . 1 . Exploration Rate (%) 26 | 3 36 38 27 Regions Visited 3 Branch Regions 1 Pre-discovered Areas . | . . . . Known Exits Taken 1 | . . 1 . Unknown Exits Taken 2 | 1 1 . . Scrap Searched . | . . . . Spaces Dug 3 | . . 3 . Terrain Destroyed 3 | . . 3 . Melee 3 | . . 3 . Projectile . | . . . . AOE . | . . . . Terrain Rammed . | . . . . Walls Destroyed . | . . . . Machines Disabled . | . . . . Actions | -11 -10 -9 -9 --------- Run | Scr Mat Mat Sto Total 719 | 65 177 342 135 Wait 8 | . . 5 3 Move 663 | 59 170 316 118 Hop 1 | . . . 1 Pick Up 5 | 2 . 2 1 Fast Attach 12 | 4 3 4 1 Attach . | . . . . Detach 3 | . 1 1 1 Swap 3 | . . 1 2 Drop 3 | . . 2 1 Fire 12 | . 3 2 7 Melee 9 | . . 9 . Ram . | . . . . Kick . | . . . . Crush . | . . . . Escape Stasis . | . . . . Rewire . | . . . . Trap . | . . . . Miscellaneous . | . . . . Route ------- -11/Scrapyard -10/Materials (discovered 2 exits: *Mat x2) -9/Materials (discovered 2 exits: [*Min] / *Sto) -9/Storage History --------- Turn | Location | Event 13 | -11/Scrapyard | Discovered new exit (range 15) 39 | -11/Scrapyard | Entered Materials 84 | -10/Materials | Discovered new exit (range 16) 101 | -10/Materials | Discovered new exit (range 13) 137 | -10/Materials | Entered another Materials area 137 | -9/Materials | Evolved 2 slots: Utility x2 253 | -9/Materials | Discovered new exit (range 8) 263 | -9/Materials | Discovered new exit (range 11) 269 | -9/Materials | Identified exit to Storage 307 | -9/Materials | Crushed by falling debris 311 | -9/Materials | Build established: Mutant 334 | -9/Materials | Entered Storage 381 | -9/Storage | Assisted by bots powering up and referring to "LRC-V3" 411 | -9/Storage | Self-destructed Last Messages --------------- 00394_ ALERT: Suspicious activity at Terminal S014. Dispatching Investigation squad. 00396_ Mercenary 2d destroyed. 00399_ G-34 Mercenary heat damages Sml. Laser. 00400_ A-02 Transporter destroyed. 00400_ Mercenary 2i destroyed. 00400_ Destroyed Sml. Laser. 00401_ G-34 Mercenary critical meltdown. 00402_ Mercenary 2e destroyed. 00402_ Acquired 49 matter. 00402_ G-34 Mercenary destroyed. 00403_ Acquired 32 matter. 00403_ Mercenary 2f destroyed. 00404_ Y-45 Defender destroyed. 00405_ Mercenary 2a destroyed. 00406_ U-05 Engineer lays Concrete. 00406_ VTOL Module destroyed. 00407_ Y-45 Defender destroyed. 00409_ G-34 Mercenary destroyed. 00409_ R-06 Scavenger collects Heat Sink. Map ----- +----------------------------------------------------+ | ???????????????????????????##??????? | | ??????????????????????????? ??????? | | ???????????????????????????# ??????? | | ???????????????????????????# ??????? | | ????o??????????????????????# ??????? | | ????????????????????########/######? | | ????????????????????# # #? | | ????????????????????# # #? | | ????????????????????# # #? | | ????????????????????# # #? | | ????????????????????# # #? | | ?????????????????????? ? ??? | | ?????????????#/#########;#####+#???? | | ????????????# r #???? | | ????????????# ######T#% a ##???? | | ?????????????????????###=!g= ###### | | ???????????????????????#=*g* ##T # | | ???????????????????????#*%*%= # # | | ??????????????????????##[=%= # # | | ????????????????#####?#[%g! + # | | ????????????????# #![=###### # | | ????????????????# """ #%!%########## | | ????????????????# """%!=[=; # | | ????????????????# """ #[[ # """"" # | | ????????????????# # # """"" # | | ????????????????# """?# @# """"" # | | ????????????????# ""??# + # | | ????????????????+ "???# # """"" # | | ????????????????# ????# # """"" # | | ????????????????#?????# #?""""" ? | | ??????????????????????# #? ?? | | ??????????????????????#Y #??#####?? | | ??????????????????????# #????????? | | ??????????????????????# #????????? | | ??????????????????????# #?######## | | ??????????????????????# o #? # | | ??????????????????????# u# # | | ??????????????????????# # """ # | | ??????????????????????# """ # | | ??????????????????????# """ # | | ??????????????????????# """ # | | ??????????????????????# """ # | | ??????????????????????# # # | | ??????????????????????# # # | | ??????????????????????# u########## | | ?????????????##???????# #????????? | | ????????????## ######## #????????? | | ????????????# !| # +????????? | | ????????????# =| #a #?g??????? | | ????????????# || [ + #????????? | +----------------------------------------------------+ Best States ------------- Heat Dissipation 28 Energy Generation 10 Energy Capacity 125 Matter Stores 299 Matter Capacity 300 Sight Range 20 Terrain Scan Density 10 Propulsion Shielding 33 Evasion (%) 61 Item Schematics ----------------- None Robot Schematics ------------------ None Fabricated ------------ Nothing Alien Tech Used ----------------- None Achievements -------------- None Challenges ------------ None Game ------ Seed MetafieldRemoteNukerbomber Manual? 0 Play Time 00:13:08 Cumulative 122.2 hours Start 2021.03.16 @ 08:00:21 End 2021.03.16 @ 09:31:39 Sessions 1 Manual Loads 0 Difficulty Rogue Special Mode None Game No. 102 Rogue 102 Adventurer 0 Explorer 0 Win Type - Total 1 Types 1/0/0/0/0/0/0/0/0 Lore% 41 Gallery% 59 Achievement% 46 Wizard Run 0 Options --------- ASCII 0 Keyboard 0 Movement Numpad Keybinds 0 Fullscreen 0 Font 14/Cog Map View 76x50 Tactical HUD 1 Map Filters NONE Filters NONE Steam 1 RUN: ee06bddb-ac88-41e8-9dc4-08f085d95149